Cogmind - Beta 15 @@@ ROGUE MODE // 2025.05.17 @ 11:09:19 Player: amhuman Result: Destroyed by as-82264 with Assembled Blade Performance ------------- Evolutions (0) 0 Regions Visited (2) 400 Robots Destroyed (22) 110 Value Destroyed (608) 608 Prototype IDs (0) 0 Alien Tech Used (0) 0 Bonus (14) 14 TOTAL SCORE: 1132 Bonus ------- Follower Combat Kills 14 Cogmind --------- Core Integrity 0/250 Matter 295/300 Energy 160/160 System Corruption 4% Temperature Cool (0) Movement Walking (260) Ox2 Location -10/Mines Parts ------- > --- POWER (1) -------- Light Nuclear Core > --- PROPULSION (2) --- Aluminum Leg > --- UTILITY (2) ------ Improved Heat Sink Large Storage Unit > --- WEAPON (2) ------- Small Laser > --- INVENTORY (15) --- Ion Engine Light Nuclear Core Aluminum Leg Aluminum Leg Aluminum Leg Heat Sink Heat Sink Small Storage Unit High-capacity Matter Pod (200) Structural Scanner Terrain Scanner Tractor Beam Assault Rifle Mining Laser Peak State ------------ > --- POWER ------------ Light Nuclear Core > --- PROPULSION ------- Aluminum Leg Aluminum Leg > --- UTILITY ---------- Improved Heat Sink Large Storage Unit > --- WEAPON ----------- Small Laser Small Laser > --- INVENTORY -------- Ion Engine Light Nuclear Core Aluminum Leg Aluminum Leg Aluminum Leg Aluminum Leg Heat Sink Heat Sink Small Storage Unit Large Matter Pod Structural Scanner Tractor Beam Mining Laser [Rating: 12] Favorites ----------- Power Light Ion Engine Engine Light Ion Engine Power Core Light Nuclear Core Propulsion Aluminum Leg Treads Light Treads Leg Aluminum Leg Utility Small Storage Unit Device Improved Heat Sink Storage Small Storage Unit Processor Signal Interpreter Protection Light Armor Plating Weapon Small Laser Energy Gun Small Laser Ballistic Gun Assault Rifle Slashing Weapon Mining Claw Build | -11 -10 -10 ------- Run | Yrd Mat Min Slots Evolved . | . . . Power . | . . . Propulsion . | . . . Utility . | . . . Weapon . | . . . Parts Attached 25 | 6 12 7 Power 4 | 1 2 1 Engine 3 | 1 2 . Core 1 | . . 1 Reactor . | . . . Propulsion 8 | 2 4 2 Treads 2 | 2 . . Leg 6 | . 4 2 Wheel . | . . . Hover . | . . . Flight . | . . . Utility 5 | 1 2 2 Device 1 | . . 1 Storage 2 | 1 . 1 Processor 1 | . 1 . Hackware . | . . . Protection 1 | . 1 . Artifact . | . . . Weapon 8 | 2 4 2 Energy Gun 6 | 1 4 1 Energy Cannon . | . . . Ballistic Gun 1 | 1 . . Ballistic Cannon . | . . . Launcher . | . . . Special Weapon . | . . . Impact Weapon . | . . . Slashing Weapon 1 | . . 1 Piercing Weapon . | . . . Special Melee Weapon . | . . . Unidentified Prototypes . | . . . Parts Lost 18 | . 10 8 Power 3 | . 2 1 Propulsion 7 | . 4 3 Utility 1 | . . 1 Weapon 7 | . 4 3 Highest Loss Streak 5 | . 5 4 To Critical Strikes 1 | . . 1 Average Backups 8 | . 4 12 Power 1 | . 1 1 Propulsion 1 | . . 3 Utility 3 | . 1 5 Weapon 1 | . . 1 Tool/Special . | . . . Unused Backups 14 | . . 14 Power 2 | . . 2 Propulsion 3 | . . 3 Utility 8 | . . 8 Weapon 1 | . . 1 Tool/Special . | . . . Average Slot Usage (%) 96 | . 94 97 Engine 8 | . 13 3 Core 5 | . . 10 Treads 10 | . 21 . Leg 16 | . 5 27 Device 5 | . . 10 Storage 14 | . 14 14 Processor 5 | . 11 . Protection 2 | . 2 2 Energy Gun 20 | . 14 27 Ballistic Gun 5 | . 11 . Peak Build Rating 12 | 6 8 12 Average Rating 8 | 4 6 10 On Entrance 4 | . 6 8 Naked Turns . | . . . Heaviest Build 29 | 12 15 29 Greatest Support 40 | 40 40 20 Greatest Overweight (x) 3 | 3 3 2 Average Overweight (x) . | . . . Largest Inventory Capacity 15 | 8 8 15 Average Capacity 11 | 7 8 14 Most Carried 15 | 2 8 15 Average Carried 8 | . 4 12 Final Capacity 15 | 8 8 15 Final Carried 14 | 2 8 14 Class Distribution -------------------- 51% | Mutant 48% | Scavenger-Mutant Dominant Class ---------------- Mutant | -10/Materials Scavenger-Mutant | -10/Mines Resources | -11 -10 -10 ----------- Run | Yrd Mat Min Matter Collected 855 | 192 388 275 Remotely . | . . . Salvage Created 794 | . 580 214 Parts 53 | . 35 18 Haulers Intercepted 1 | . 1 . Recyclers Shooed . | . . . Parts Field Recycled . | . . . Retrieved Matter . | . . . Parts Self-Destructed . | . . . Prevented . | . . . Kills | -11 -10 -10 ------- Run | Yrd Mat Min Combat Hostiles Destroyed 19 | . 14 5 Guns 18 | . 13 5 Classes Destroyed 5 | . 4 1 Worker 1 | . . 1 Hauler 1 | . 1 . Watcher 1 | . 1 . Swarmer 4 | . 3 1 Grunt 15 | . 11 4 Best Kill Streak 4 | . 4 4 Combat Bots Only 4 | . 4 4 Max Kills in Single Turn 1 | . 1 1 Gunslinging . | . . . Exploded . | . . . Melee . | . . . Uniques/NPCs Destroyed . | . . . Combat | -11 -10 -10 -------- Run | Yrd Mat Min Hostile Shots Fired 169 | . 128 41 Missed 41 | . 34 7 Hits 128 | . 94 34 Melee 2 | . . 2 Projectile 126 | . 94 32 Critical Strikes 2 | . 1 1 Damage Taken 1634 | . 1136 498 Core 268 | . 191 77 Absorbed by Shields . | . . . Core Remaining (%) 100 | 100 . . Volleys Fired 84 | . 64 20 Largest 2 | . 2 2 Hottest 80 | . 80 80 Shots Fired 141 | . 110 31 Gun 141 | . 110 31 Cannon . | . . . Launcher . | . . . Special . | . . . Kinetic 35 | . 35 . Thermal 86 | . 58 28 Explosive . | . . . Electromagnetic 20 | . 17 3 Robot Hit Streak 16 | . 8 16 Robot Miss Streak 2 | . 2 2 Penetration Max . | . . . Secondary Targets 1 | . 1 . Max Gunslinging Chain 1 | . 1 . Shots Hit Robots 103 | . 80 23 Core Hits 39 | . 27 12 Critical Kills . | . . . Critical Parts Destroyed 1 | . 1 . Critical Strikes 1 | . 1 . Destroy 1 | . 1 . Melee Attacks . | . . . Impact . | . . . Slashing . | . . . Piercing . | . . . Sneak Attacks . | . . . Combat Hostiles . | . . . Follow-up Attacks . | . . . Damage Inflicted 1254 | . 982 272 Guns 1254 | . 982 272 Cannons . | . . . Explosions . | . . . Melee . | . . . Ramming . | . . . Kinetic 316 | . 316 . Thermal 739 | . 504 235 Explosive . | . . . Electromagnetic 199 | . 162 37 Impact . | . . . Slashing . | . . . Piercing . | . . . Highest Corruption 4 | . 4 4 Average Corruption 3 | . 1 4 Corruption Purged . | . . . Corruption Blocked . | . . . Effects 21 | . 4 17 Message Errors 8 | . 1 7 Matter Fused 4 | . . 4 Heat Flow Errors 3 | . 1 2 Energy Discharges 1 | . . 1 Data Loss (major) 3 | . 1 2 Misfires 1 | . . 1 Weapon Failures 1 | . 1 . Overload Shots . | . . . Overflow Damage . | . . . Projectiles . | . . . Explosions . | . . . Melee . | . . . Knockbacks . | . . . Impact . | . . . Kinetic . | . . . Secondary . | . . . Self-Inflicted Damage . | . . . Shots . | . . . Rammed . | . . . Targets Rammed 1 | . 1 . Kicked 1 | . 1 . Crushed . | . . . Highest Temperature 264 | . 264 123 Average Temperature 60 | . 66 35 Received Heat Transfer 843 | . 636 207 Siege Activations . | . . . Martial Activations . | . . . Shielding Activations . | . . . Robots Disrupted . | . . . Combat Hostiles . | . . . Robots Corrupted . | . . . Combat Hostiles . | . . . Parts Fried . | . . . Impact Corruptions . | . . . Robots Melted 1 | . 1 . Combat Hostiles 1 | . 1 . Parts Melted 5 | . 4 1 Heat Transferred 1675 | . 1150 525 Parts Sabotaged . | . . . Parts Stolen . | . . . Parts Stripped . | . . . Power Chain Reactions . | . . . Alert | -11 -10 -10 ------- Run | Yrd Mat Min Maximum Alert Level . | . . . Low Security (%) 100 | 100 100 100 Level 1 . | . . . Level 2 . | . . . Level 3 . | . . . Level 4 . | . . . Level 5 . | . . . High Security . | . . . Max Security . | . . . Peak Influence 141 | . 141 70 Initial 36 | . . 36 Average 23 | . 36 12 Influence Increases 591 | . 408 183 Destroy 0b10 Robot/C 420 | . 280 140 Destroy 0b10 Robot/NC 25 | . 10 15 Destroy Leader 74 | . 54 20 Allied During Kill 8 | . . 8 Successful Hack 34 | . 34 . Select Force Hacks 30 | . 30 . Influence Decreases 591 | . 313 278 Entered New Map 59 | . . 59 Time Decay 369 | . 213 156 Lost Part 158 | . 100 58 Lost Ally 5 | . . 5 Squads Dispatched 4 | . 3 1 Investigation 3 | . 3 . Extermination . | . . . Reinforcement . | . . . Assault 1 | . . 1 Garrison . | . . . Intercept . | . . . Searches Triggered . | . . . Construction Impeded . | . . . Haulers Reinforced . | . . . Active Scanning Responses . | . . . Cargo Convoy Interrupts . | . . . Stealth | -11 -10 -10 --------- Run | Yrd Mat Min Distress Signals 4 | . 4 . Communications Jammed . | . . . Distress Signals . | . . . Times Spotted 37 | . 20 17 Peak Tracking Total 17 | . 5 17 Tactical Retreats . | . . . Traps | -11 -10 -10 ------- Run | Yrd Mat Min Traps Triggered 3 | . 3 . Indirectly . | . . . Trap Hack Attempts . | . . . Triggered . | . . . Disarmed . | . . . Reprogrammed . | . . . Reused . | . . . Traps Extracted . | . . . Installed . | . . . Triggered . | . . . Machines | -11 -10 -10 ---------- Run | Yrd Mat Min Machines Disabled . | . . . Max in Single Turn . | . . . Machines Repaired . | . . . Machines Dismantled . | . . . Machines Sabotaged . | . . . Overloaded Fab Kills . | . . . Hacking | -11 -10 -10 --------- Run | Yrd Mat Min Machines Accessed 7 | . 7 . Terminals 6 | . 6 . Fabricators . | . . . Repair Stations . | . . . Recycling Units 1 | . 1 . Scanalyzers . | . . . Garrison Access . | . . . Total Hacks 16 | . 16 . Successful 5 | . 5 . Failed 11 | . 11 . Catastrophic 2 | . 2 . Database Lockouts . | . . . Manual 13 | . 13 . Terminals 15 | . 15 . Fabricators . | . . . Repair Stations . | . . . Recycling Units 1 | . 1 . Scanalyzers . | . . . Garrison Access . | . . . Terminal Hacks 2 | . 2 . Robot Analysis 2 | . 2 . Fabricator Hacks . | . . . Repair Station Hacks . | . . . Recycling Unit Hacks . | . . . Scanalyzer . | . . . Garrison Access Hacks . | . . . Unauthorized Hacks 3 | . 3 . Terminals 2 | . 2 . Botnet 2 | . 2 . Fabricators . | . . . Repair Stations . | . . . Recycling Units 1 | . 1 . Tunnel 1 | . 1 . Scanalyzers . | . . . Garrison Access . | . . . Data Cores Recovered . | . . . Used . | . . . Hacking Detections 6 | . 6 . Full Trace Events 3 | . 3 . Feedback Events 1 | . 1 . Corruption 1 | . 1 . Feedback Blocked . | . . . Robot Schematics Acquired . | . . . Robots Built . | . . . Authchips . | . . . Time . | . . . Total Robot Build Rating . | . . . Part Schematics Acquired . | . . . Parts Built . | . . . Authchips . | . . . Time . | . . . Total Part Build Rating . | . . . Parts Repaired . | . . . Time . | . . . Parts Recycled . | . . . Recycled Matter . | . . . Retrieved Matter . | . . . Retrieved Components . | . . . Parts Scanalyzed . | . . . Part Schematics Acquired . | . . . Parts Damaged . | . . . Bothacking | -11 -10 -10 ------------ Run | Yrd Mat Min Used RIF Installer . | . . . Robots Hacked . | . . . Non-combat . | . . . Combat . | . . . Robot Hacks Applied . | . . . Relay Couplers Released . | . . . Fabnet Peak Effective % . | . . . Robots Rewired . | . . . Allies Hacked . | . . . Hacks Repelled . | . . . Allies | -11 -10 -10 -------- Run | Yrd Mat Min Total Allies 4 | . . 4 Largest Group 3 | . . 3 Highest-Rated Group 40 | . . 40 Highest-Rated Ally 31 | . . 31 Total Orders . | . . . Ally Attacks 23 | . . 23 Total Damage 245 | . . 245 Kills 2 | . . 2 Allies Corrupted . | . . . Allies Melted . | . . . Intel | -11 -10 -10 ------- Run | Yrd Mat Min Active Infowar (turns) . | . . . Robot Analysis Total 2 | . 2 . Derelict Logs Recovered 2 | . . 2 Drone Launches . | . . . Drone Recoveries . | . . . Exploration | -11 -10 -10 ------------- Run | Yrd Mat Min Turns Passed 1917 | 82 926 909 Spaces Moved 865 | 48 378 439 Core 15 | 12 3 . Treads 325 | 36 289 . Legs 525 | . 86 439 Wheels . | . . . Hover . | . . . Flight . | . . . Fastest Speed 50 | 50 120 120 Average Speed 170 | 151 151 189 Slowest Speed 260 | 200 200 260 Overloaded Moves . | . . . Propulsion Burnouts . | . . . Robots Hopped . | . . . Potential Cave-ins . | . . . Cave-ins Triggered . | . . . Exploration Rate (%) 44 | 4 63 67 Regions Visited 2 Branch Regions 1 Pre-discovered Areas 2 | . 1 1 Known Exits Taken . | . . . Unknown Exits Taken 2 | 1 1 . Scrap Searched . | . . . Spaces Dug . | . . . Terrain Destroyed . | . . . Melee . | . . . Projectile . | . . . AOE . | . . . Terrain Rammed . | . . . Walls Destroyed . | . . . Machines Disabled . | . . . Actions | -11 -10 -10 --------- Run | Yrd Mat Min Total 1160 | 55 617 488 Wait 160 | . 152 8 Move 863 | 47 377 439 Hop . | . . . Pick Up 24 | 2 10 12 Fast Attach 16 | 6 8 2 Attach 8 | . 4 4 Detach . | . . . Swap 1 | . . 1 Drop 3 | . 1 2 Fire 84 | . 64 20 Melee . | . . . Ram . | . . . Kick 1 | . 1 . Crush . | . . . Escape Stasis . | . . . Rewire . | . . . Trap . | . . . Miscellaneous . | . . . Route ------- -11/Scrapyard -10/Materials (discovered 2 exits: [*Mat] / [*Min]) -10/Mines (discovered 2 exits: [*Mat] / [*Exi]) History --------- Turn | Location | Event 29 | -11/Scrapyard | Discovered new exit (range 13) 83 | -11/Scrapyard | Entered Materials 240 | -10/Materials | Discovered new exit (range 10) 304 | -10/Materials | Build established: Mutant 814 | -10/Materials | Lost 4 parts (1p2n1w) 823 | -10/Materials | Core integrity fell below 50% 959 | -10/Materials | Lost 5 parts (1p2n2w) 978 | -10/Materials | Discovered new exit (range 8) 1009 | -10/Materials | Entered Mines 1052 | -10/Mines | Learned location of 1 exit from Materials 1121 | -10/Mines | Met a Derelict testing a Signal Generator 1158 | -10/Mines | Core integrity fell below 20% 1246 | -10/Mines | Lost 4 parts (1p1n2w) 1400 | -10/Mines | Discovered new exit (range 9) 1457 | -10/Mines | Assisted by bots powering up and referring to "LRC-V3" 1530 | -10/Mines | Build established: Scavenger-Mutant 1535 | -10/Mines | Deemed a non-threat by the Exiles lab entrance 1537 | -10/Mines | Discovered new exit (range 5) 1907 | -10/Mines | Assembled infested the area 1912 | -10/Mines | Assisted by a Guerilla fighting off Assembled 1918 | -10/Mines | Destroyed by as-82264 with Assembled Blade Last Messages --------------- 01852_ VAJ7DLD NSHOCQKJ#NRHN,E 2>BZ%1WMW 01901_ System corrupted: Matter fused (-5). 01907_ ALERT: Infestation in the mines, dispatching Demolisher response squad. 01908_ T-07 Excavator destroyed. 01910_ HW-QY8(h): "I'll hold them off! Go on ahead or try to find another way!" 01912_ A derelict emerges from the shadows: "You need to get out of here! I've been tracking a group of Assembled to figure out where they're coming from, and they're closing on this area, come on!" 01913_ Critical hit (Destroy). 01913_ Sml. Laser destroyed. 01913_ Aluminum Leg destroyed. 01913_ Knocked back. 01915_ HV Slug penetrates as-96504. 01915_ as-96504 suffers critical hit (Destroy). 01915_ as-96504 destroyed. 01916_ Aluminum Leg destroyed. Map ----- +----------------------------------------------------+ | | | | | | | | | | | | | | | | | | | | | | | | | | | ?????????????????????????????????????????????????? | | ?????????????????????????????????????????????????? | | ?????????????????????????????????????????????????? | | ?????????????????????????????????????????????????? | | ???????????????????????????????????????????????### | | ???????????????????????????????????????????????# | | ???????????????????????????????????????????????# | | ???????????????????????????????????????????????# | | ???????????????????????????????????????????????# | | ???????????????????????????????####????????????# | | ??????????????????????????????## ##???????????# | | ??????????????????##???####??## ##??????????# | | ?????????????? ####" ## @#### ##?????????# | | ???????????= $a ## ##????????# | | ???????????%! a a % a ##???????# | | ??????????? ### % % ######### | | ?????????????????##= a g ### | | ??????????????????## h #?? | | ???????????????????# g ########## #?? | | ???????????????????# k ##????????# #?? | | ????????????????? ### #?????????# #?? | | ????????????????##### #??### ##?####????# #?? | | ????????????????????###?????# ###?## ##???# #?? | | ????????????????????????????# #???# #??## ### | | ??????????????????????????? #???# #?## # | | ??????????????????????????### #???# ?## | | ????????????????????????????# #??## #?# | | ????????????????????????????# #?## #?# | | ????????????????????????????# ### #?# | | ????????????????????????????# #### | | ????????????????????????????# ### | | ????????????????????????????###?# | | ????????????????????????????????# % | | ???????????????????????????###??# ## ### ## | | ??????????????????????????## ### ### #?# ##? | | ??????????????????????????# ##? #?# ##?? | | ????????????######????????## ##? ###?# #??? | +----------------------------------------------------+ Best States ------------- Heat Dissipation 39 Energy Generation 14 Energy Capacity 250 Matter Stores 300 Matter Capacity 300 Sight Range 16 Terrain Scan Density 10 Armor Coverage 150 Evasion (%) 55 Recoil Reduction 2 Item Schematics ----------------- None Robot Schematics ------------------ None Fabricated ------------ Nothing Repaired ---------- Nothing Alien Tech Used ----------------- None Achievements -------------- None Challenges ------------ None Game ------ Seed SkeletonCoolantStripper Manual? 0 Play Time 00:13:27 Cumulative 197.1 hours Start 2025.05.17 @ 10:56:32 End 2025.05.17 @ 11:09:19 Sessions 1 Manual Loads 0 Difficulty Rogue Special Mode None Game No. 193 Rogue 193 Adventurer 0 Explorer 0 Win Type - Total 1 Types 1/0/0/0/0/0/0/0/0/0 Lore% 70 Gallery% 55 Achievement% 48 Wizard Run 0 Options --------- Layout 1 ASCII 0 Keyboard 0 Movement Mouse Keybinds 0 Fullscreen 1 Font 24/Smallcaps Map View 50x35 Zoom Use 0% Tactical HUD 1 Map Filters NONE Filters NONE Steam 1 RUN: dcbc3b3c-98b0-4c24-8203-830f9b08bfea